Cogmind - Beta 16 @@@ ROGUE MODE // 2026.02.05 @ 19:41:54 Player: Megaknight51 Result: Destroyed by S-43 Plague with Heavy Machine Gun Performance ------------- Evolutions (8) 4000 Regions Visited (21) 4200 Robots Destroyed (49) 245 Value Destroyed (936) 936 Prototype IDs (45) 900 Alien Tech Used (0) 0 Bonus (1520) 1520 TOTAL SCORE: 11801 Bonus ------- Follower Combat Kills 220 Entered Garrisons 200 Entered DSFs 500 Aligned with FarCom 300 Met Data Miner 300 Cogmind --------- Core Integrity 0/1450 Matter 286/300 Energy 79/100 System Corruption 4% Temperature Cool (0) Movement Core (50) Location -2/Research Parts ------- > --- POWER (3) -------- (None) > --- PROPULSION (4) --- (None) > --- UTILITY (14) ----- (None) > --- WEAPON (2) ------- (None) > --- INVENTORY (5) ---- High-capacity Matter Pod (200) Improved Remote Shield Improved Field Recycling Unit (0) Improved Remote Datajack Peak State ------------ > --- POWER ------------ Particle Reactor Micro Antimatter Reactor Micro Antimatter Reactor > --- PROPULSION ------- Impulse Thruster Q-thruster Q-thruster Cooled Impulse Thruster > --- UTILITY ---------- ECM Suite Experimental Shield Generator Improved System Shield > --- WEAPON ----------- (None) > --- INVENTORY -------- Impulse Thruster High-capacity Matter Pod Improved Remote Shield Improved Field Recycling Unit Improved Remote Datajack [Rating: 73] Favorites ----------- Power Micro Antimatter Reactor Engine Ion Engine Power Core Micro Nuclear Core Reactor Micro Antimatter Reactor Propulsion Aluminum Leg Treads Light Treads Leg Aluminum Leg Flight Unit Xenon Bombardment Thruster Utility 0b10 Alert Chip Device Structural Scanner Storage Huge Storage Unit Processor 0b10 Alert Chip Hackware Improved System Shield Weapon Small Laser Energy Gun Small Laser Ballistic Gun Shotgun Special Weapon Remote Datajack Impact Weapon Heavy Mace Build | -11 -10 -10 -9 -9 -9 -8 -8 -8 -8 -8 -6 -6 -6 -6 -5 -5 -5 -5 -4 -3 -2 ------- Run | Yrd Mat Min Mat Min Exi Min Mat Sto Rec Scr Fac Low Low Dat Pro Fac DSF Gar Fac Res Res Slots Evolved 16 | . . . 2 . . . 2 . . . 4 . . . . 2 . . 2 2 2 Power 2 | . . . . . . . 1 . . . . . . . . . . . . 1 . Propulsion 2 | . . . 2 . . . . . . . . . . . . . . . . . . Utility 12 | . . . . . . . 1 . . . 4 . . . . 2 . . 2 1 2 Weapon . | . . . . . . . . . . . . . . . . . . . . . . Parts Attached 79 | 7 1 8 17 1 1 . 14 . . . 11 . . . . 1 2 . . 15 1 Power 16 | 1 . 3 3 . . . 2 . . . 2 . . . . 1 . . . 4 . Engine 9 | 1 . 3 3 . . . 1 . . . 1 . . . . . . . . . . Core 3 | . . . . . . . 1 . . . 1 . . . . 1 . . . . . Reactor 4 | . . . . . . . . . . . . . . . . . . . . 4 . Propulsion 31 | 2 . 4 4 1 . . 7 . . . 4 . . . . . 2 . . 7 . Treads 2 | 2 . . . . . . . . . . . . . . . . . . . . . Leg 6 | . . 2 3 1 . . . . . . . . . . . . . . . . . Wheel . | . . . . . . . . . . . . . . . . . . . . . . Hover . | . . . . . . . . . . . . . . . . . . . . . . Flight 23 | . . 2 1 . . . 7 . . . 4 . . . . . 2 . . 7 . Utility 18 | 2 1 1 1 . 1 . 3 . . . 4 . . . . . . . . 4 1 Device 11 | 1 . 1 . . . . 2 . . . 4 . . . . . . . . 3 . Storage 3 | 1 1 . 1 . . . . . . . . . . . . . . . . . . Processor 3 | . . . . . 1 . 1 . . . . . . . . . . . . . 1 Hackware 1 | . . . . . . . . . . . . . . . . . . . . 1 . Protection . | . . . . . . . . . . . . . . . . . . . . . . Artifact . | . . . . . . . . . . . . . . . . . . . . . . Weapon 14 | 2 . . 9 . . . 2 . . . 1 . . . . . . . . . . Energy Gun 5 | 1 . . 4 . . . . . . . . . . . . . . . . . . Energy Cannon . | . . . . . . . . . . . . . . . . . . . . . . Ballistic Gun 6 | 1 . . 5 . . . . . . . . . . . . . . . . . . Ballistic Cannon . | . . . . . . . . . . . . . . . . . . . . . . Launcher . | . . . . . . . . . . . . . . . . . . . . . . Special Weapon 1 | . . . . . . . . . . . 1 . . . . . . . . . . Impact Weapon 2 | . . . . . . . 2 . . . . . . . . . . . . . . Slashing Weapon . | . . . . . . . . . . . . . . . . . . . . . . Piercing Weapon . | . . . . . . . . . . . . . . . . . . . . . . Special Melee Weapon . | . . . . . . . . . . . . . . . . . . . . . . Unidentified Prototypes 7 | . . 1 3 . . . 1 . . . . . . . . . . . . 2 . Parts Lost 27 | . . 8 4 1 . . . . . . . . . . . . 4 4 . 4 2 Power 6 | . . 3 1 . . . . . . . . . . . . . 2 . . . . Propulsion 14 | . . 3 1 1 . . . . . . . . . . . . 2 3 . 2 2 Utility 5 | . . 1 1 . . . . . . . . . . . . . . 1 . 2 . Weapon 2 | . . 1 1 . . . . . . . . . . . . . . . . . . Highest Loss Streak 4 | . . 4 2 1 . . . . . . . . . . . . 4 4 . 4 2 To Critical Strikes . | . . . . . . . . . . . . . . . . . . . . . . Average Backups 8 | 1 5 11 13 14 15 14 4 4 4 4 4 5 5 5 5 5 3 2 2 4 4 Power 1 | . 1 2 2 2 2 2 . . . . . . . . . . . . . . . Propulsion 2 | . . 3 5 3 4 4 . . . . 1 2 2 2 2 2 . . . . . Utility 3 | . 3 5 4 4 4 4 3 4 4 4 2 3 3 3 3 3 3 2 2 2 3 Weapon . | . . . 1 5 5 3 . . . . . . . . . . . . . . . Tool/Special . | . . . . . . . . . . . . . . . . . . . . . . Unused Backups 18 | . . . 10 . . 1 4 . . . 1 . . . . . . . . . 2 Power 3 | . . . 3 . . . . . . . . . . . . . . . . . . Propulsion 7 | . . . 6 . . 1 . . . . . . . . . . . . . . . Utility 4 | . . . 1 . . . 1 . . . 1 . . . . . . . . . 1 Weapon 3 | . . . . . . . 3 . . . . . . . . . . . . . . Tool/Special 1 | . . . . . . . . . . . . . . . . . . . . . 1 Average Slot Usage (%) 74 | . 100 71 91 86 93 100 90 100 100 83 82 93 93 93 93 82 75 50 . 32 28 Engine 8 | . 14 5 11 11 11 11 17 18 18 18 7 6 6 6 6 5 1 . . . . Reactor 1 | . . . . . . . . . . . . . . . . . . . . 7 7 Treads 2 | . 28 2 . . . . . . . . . . . . . . . . . . . Leg 14 | . . 14 43 42 44 44 . . . . . . . . . . . . . . . Flight 11 | . . 5 . . . . 35 36 36 36 26 26 26 26 26 23 23 15 . 16 12 Device 8 | . 14 8 8 . . . 8 9 9 9 17 26 26 26 26 23 23 18 . 6 . Storage 6 | . 14 14 11 11 11 11 . . . . . . . . . . . . . . . Processor 4 | . . . . . 4 11 9 18 18 18 13 13 13 13 13 11 11 7 . . 3 Energy Gun 5 | . 14 14 5 . . . . . . . . . . . . . . . . . . Ballistic Gun 7 | . 14 6 11 22 22 22 8 . . . . . . . . . . . . . . Impact Weapon 1 | . . . . . . . 9 18 18 2 6 6 6 6 6 5 5 3 . . . Peak Build Rating 73 | 7 8 15 26 14 20 20 42 41 41 41 61 61 61 61 61 61 61 58 . 73 49 Average Rating 25 | 5 7 7 18 13 16 19 29 41 41 35 51 61 61 61 61 61 55 39 . 51 46 On Entrance 33 | . 7 8 15 14 14 20 20 41 41 41 41 61 61 61 61 61 61 54 . . 45 Avg Prop Armor Cover (%) 16 | . . . 17 . . . . . . . . . . . . . 13 . . . . Naked Turns 278 | . . . . . . . . . . . . . . . . . . 45 173 6 54 Heaviest Build 88 | 11 86 88 87 33 33 33 33 17 17 17 26 26 26 26 26 26 26 21 . 30 16 Greatest Support 40 | 40 40 40 40 40 40 40 40 20 20 20 28 28 28 28 28 28 28 28 3 30 21 Greatest Overweight (x) 29 | . 2 29 3 1 . . . . . . . . . . . . 4 4 . 1 . Average Overweight (x) . | . . 6 . . . . . . . . . . . . . . . . . . . Largest Inventory Capacity 25 | 8 25 25 25 15 15 15 15 5 5 5 5 5 5 5 5 5 5 5 5 5 5 Average Capacity 12 | 7 11 25 15 15 15 15 5 5 5 5 5 5 5 5 5 5 5 5 5 5 5 Most Carried 15 | 2 10 14 15 15 15 15 15 5 5 5 5 5 5 5 5 5 5 3 2 5 4 Average Carried 8 | 1 5 11 13 14 15 14 5 5 5 5 4 5 5 5 5 5 3 2 2 4 4 Final Capacity 25 | 8 25 25 15 15 15 15 5 5 5 5 5 5 5 5 5 5 5 5 5 5 5 Final Carried 15 | 2 10 14 15 15 15 15 5 5 5 5 5 5 5 5 5 5 3 2 2 4 4 Scrap Suit Usage (%) 12 | . . . . . . . . . . . 99 100 100 100 100 100 100 72 . . . Parts Cannibalized 1 | . . . . . . . . . . . . . . . . . 1 . . . . Class Distribution -------------------- 33% | Mutant 26% | Scavenger-Mutant 16% | Sprinter 13% | Scout 4% | Infiltrator-Sprinter 4% | Infiltrator-Ninja Dominant Class ---------------- Mutant | -10/Materials Mutant | -10/Mines Scavenger-Mutant | -9/Materials Scavenger-Mutant | -9/Mines Scavenger-Mutant | -9/Exiles Scavenger-Mutant | -8/Mines Scout | -8/Materials Scout | -8/Storage Scout | -8/Recycling Sprinter | -8/Scraptown Infiltrator-Ninja | -6/Factory Infiltrator-Sprinter | -6/Lower Caves Infiltrator-Sprinter | -6/Lower Caves Infiltrator-Sprinter | -6/Data Miner Infiltrator-Sprinter | -5/Proximity Caves Infiltrator-Ninja | -5/Factory Infiltrator-Assassin | -5/DSF Infiltrator-Assassin | -5/Garrison Mutant | -4/Factory Sprinter | -3/Research Sprinter | -2/Research Resources | -11 -10 -10 -9 -9 -9 -8 -8 -8 -8 -8 -6 -6 -6 -6 -5 -5 -5 -5 -4 -3 -2 ----------- Run | Yrd Mat Min Mat Min Exi Min Mat Sto Rec Scr Fac Low Low Dat Pro Fac DSF Gar Fac Res Res Matter Collected 1630 | 288 87 407 377 47 . 24 . . . 157 83 . 56 . . . 5 9 . 90 . Remotely . | . . . . . . . . . . . . . . . . . . . . . . Salvage Created 1702 | 177 199 373 906 47 . . . . . . . . . . . . . . . . . Parts 107 | 14 14 20 51 8 . . . . . . . . . . . . . . . . . Haulers Intercepted 5 | . . . 5 . . . . . . . . . . . . . . . . . . Recyclers Shooed 3 | 1 1 . . . . . . . . . . . . . . . . . . . 1 Parts Field Recycled . | . . . . . . . . . . . . . . . . . . . . . . Retrieved Matter . | . . . . . . . . . . . . . . . . . . . . . . Parts Self-Destructed . | . . . . . . . . . . . . . . . . . . . . . . Prevented 1 | . . . . . . . . . . . . . 1 . . . . . . . . Parts Restored . | . . . . . . . . . . . . . . . . . . . . . . Kills | -11 -10 -10 -9 -9 -9 -8 -8 -8 -8 -8 -6 -6 -6 -6 -5 -5 -5 -5 -4 -3 -2 ------- Run | Yrd Mat Min Mat Min Exi Min Mat Sto Rec Scr Fac Low Low Dat Pro Fac DSF Gar Fac Res Res Combat Hostiles Destroyed 31 | . 4 9 14 4 . . . . . . . . . . . . . . . . . Guns 31 | . 4 9 14 4 . . . . . . . . . . . . . . . . . Classes Destroyed 8 | 2 2 1 3 . . . . . . . . . . . . . . . . . . Worker 1 | . . . 1 . . . . . . . . . . . . . . . . . . Builder 3 | . 1 2 . . . . . . . . . . . . . . . . . . . Tunneler 5 | 5 . . . . . . . . . . . . . . . . . . . . . Hauler 5 | . . . 5 . . . . . . . . . . . . . . . . . . Recycler 4 | 1 . 1 2 . . . . . . . . . . . . . . . . . . Swarmer 13 | . . 5 4 4 . . . . . . . . . . . . . . . . . Grunt 14 | . 4 4 6 . . . . . . . . . . . . . . . . . . Sentry 4 | . . . 4 . . . . . . . . . . . . . . . . . . Best Kill Streak 4 | 2 3 3 4 4 . . . . . . . . . . . . . . . . . Combat Bots Only 4 | . 2 3 4 4 . . . . . . . . . . . . . . . . . Max Kills in Single Turn 3 | 1 1 1 2 3 . . . . . . . . . . . . . . . . . Gunslinging 1 | . . . . 1 . . . . . . . . . . . . . . . . . Exploded . | . . . . . . . . . . . . . . . . . . . . . . Melee . | . . . . . . . . . . . . . . . . . . . . . . Uniques/NPCs Destroyed . | . . . . . . . . . . . . . . . . . . . . . . Combat | -11 -10 -10 -9 -9 -9 -8 -8 -8 -8 -8 -6 -6 -6 -6 -5 -5 -5 -5 -4 -3 -2 -------- Run | Yrd Mat Min Mat Min Exi Min Mat Sto Rec Scr Fac Low Low Dat Pro Fac DSF Gar Fac Res Res Hostile Shots Fired 670 | . 26 91 80 8 . . 4 . . . . 15 7 . 13 6 12 95 114 82 117 Missed 279 | . 8 27 31 4 . . 1 . . . . 10 6 . 8 3 4 36 53 35 53 Hits 391 | . 18 64 49 4 . . 3 . . . . 5 1 . 5 3 8 59 61 47 64 Melee 22 | . . . . . . . . . . . . . . . . . . 22 . . . Projectile 369 | . 18 64 49 4 . . 3 . . . . 5 1 . 5 3 8 37 61 47 64 Critical Strikes 18 | . 1 . . . . . . . . . . 1 . . 1 . 1 9 1 1 3 Damage Taken 6537 | . 270 625 598 35 . . 44 . . . 31 91 33 . 90 60 275 1067 1067 746 1505 Core 3982 | . 63 158 65 9 . . 12 . . . . . . . . 22 22 833 1067 274 1457 Absorbed by Shields 322 | . . . . . . . . . . . . . . . . . . 99 . 223 . Regen/Repaired (Parts) 3 | . . . . . . . . . . . . . . . . . 3 . . . . Core Remaining (%) 60 | 100 . 11 . . . 81 . . . 97 . . . . 100 . . 12 7 78 . Volleys Fired 148 | 18 29 43 56 2 . . . . . . . . . . . . . . . . . Largest 2 | 2 2 2 2 2 . . . . . . . . . . . . . . . . . Hottest 105 | 60 60 60 105 46 . . . . . . . . . . . . . . . . . Shots Fired 278 | 36 58 80 100 4 . . . . . . . . . . . . . . . . . Gun 278 | 36 58 80 100 4 . . . . . . . . . . . . . . . . . Cannon . | . . . . . . . . . . . . . . . . . . . . . . Launcher . | . . . . . . . . . . . . . . . . . . . . . . Special . | . . . . . . . . . . . . . . . . . . . . . . Kinetic 153 | 18 29 37 65 4 . . . . . . . . . . . . . . . . . Thermal 125 | 18 29 43 35 . . . . . . . . . . . . . . . . . . Explosive . | . . . . . . . . . . . . . . . . . . . . . . Electromagnetic . | . . . . . . . . . . . . . . . . . . . . . . Robot Hit Streak 14 | 7 10 14 11 4 . . . . . . . . . . . . . . . . . Robot Miss Streak 4 | 3 3 3 4 2 . . . . . . . . . . . . . . . . . Penetration Max . | . . . . . . . . . . . . . . . . . . . . . . Secondary Targets 4 | . 1 2 . 1 . . . . . . . . . . . . . . . . . Max Gunslinging Chain 1 | . 1 1 . 1 . . . . . . . . . . . . . . . . . Shots Hit Robots 199 | 23 38 61 73 4 . . . . . . . . . . . . . . . . . Core Hits 93 | 12 15 23 36 4 . . . . . . . . . . . . . 1 . . 2 Critical Kills . | . . . . . . . . . . . . . . . . . . . . . . Critical Parts Destroyed . | . . . . . . . . . . . . . . . . . . . . . . Critical Strikes 2 | . . . 2 . . . . . . . . . . . . . . . . . . Burn 2 | . . . 2 . . . . . . . . . . . . . . . . . . Melee Attacks 6 | . . . . . . . 1 . . . 3 . . . . 2 . . . . . Impact 6 | . . . . . . . 1 . . . 3 . . . . 2 . . . . . Slashing . | . . . . . . . . . . . . . . . . . . . . . . Piercing . | . . . . . . . . . . . . . . . . . . . . . . Sneak Attacks . | . . . . . . . . . . . . . . . . . . . . . . Combat Hostiles . | . . . . . . . . . . . . . . . . . . . . . . Follow-up Attacks . | . . . . . . . . . . . . . . . . . . . . . . Damage Inflicted 2534 | 232 371 639 1165 55 . . . . . . . . . . . . . 8 25 . 39 Guns 2425 | 232 367 628 1143 55 . . . . . . . . . . . . . . . . . Cannons . | . . . . . . . . . . . . . . . . . . . . . . Explosions . | . . . . . . . . . . . . . . . . . . . . . . Melee . | . . . . . . . . . . . . . . . . . . . . . . Ramming 109 | . 4 11 22 . . . . . . . . . . . . . . 8 25 . 39 Kinetic 1285 | 108 157 236 729 55 . . . . . . . . . . . . . . . . . Thermal 1140 | 124 210 392 414 . . . . . . . . . . . . . . . . . . Explosive . | . . . . . . . . . . . . . . . . . . . . . . Electromagnetic . | . . . . . . . . . . . . . . . . . . . . . . Impact . | . . . . . . . . . . . . . . . . . . . . . . Slashing . | . . . . . . . . . . . . . . . . . . . . . . Piercing . | . . . . . . . . . . . . . . . . . . . . . . Highest Corruption 4 | . . . . . . . . . . . . . . . . . 1 1 . 3 4 Average Corruption 2 | . . . . . . . . . . . . . . . . . 1 1 . 2 3 Corruption Purged . | . . . . . . . . . . . . . . . . . . . . . . Corruption Blocked . | . . . . . . . . . . . . . . . . . . . . . . Effects 5 | . . . . . . . . . . . . . . . . . . 1 . 3 1 Message Errors 1 | . . . . . . . . . . . . . . . . . . . . 1 . Matter Fused 1 | . . . . . . . . . . . . . . . . . . 1 . . . Heat Flow Errors 1 | . . . . . . . . . . . . . . . . . . . . 1 . Energy Discharges 1 | . . . . . . . . . . . . . . . . . . . . . 1 Parts Rejected 1 | . . . . . . . . . . . . . . . . . . . . 1 . Overload Shots . | . . . . . . . . . . . . . . . . . . . . . . Overflow Damage . | . . . . . . . . . . . . . . . . . . . . . . Projectiles . | . . . . . . . . . . . . . . . . . . . . . . Explosions . | . . . . . . . . . . . . . . . . . . . . . . Melee . | . . . . . . . . . . . . . . . . . . . . . . Knockbacks . | . . . . . . . . . . . . . . . . . . . . . . Impact . | . . . . . . . . . . . . . . . . . . . . . . Kinetic . | . . . . . . . . . . . . . . . . . . . . . . Secondary . | . . . . . . . . . . . . . . . . . . . . . . Self-Inflicted Damage 32 | . . . . . . . . . . . . . . . . . . 3 12 . 17 Shots . | . . . . . . . . . . . . . . . . . . . . . . Rammed 21 | . 2 1 . . . . . . . . . . . . . . . 2 3 . 13 Targets Rammed 32 | . 2 3 9 . . . . . . . . . . . . . . 2 3 . 13 Kicked 11 | . . 2 9 . . . . . . . . . . . . . . . . . . Crushed . | . . . . . . . . . . . . . . . . . . . . . . Highest Temperature 278 | 40 109 82 219 . . . 1 . . . 4 33 8 . 5 . . 14 . 278 . Average Temperature 49 | 17 42 35 76 . . . 1 . . . 4 13 5 . 3 . . 14 . 177 . Received Heat Transfer 1006 | . 162 174 234 . . . 9 . . . . 63 12 . 9 . . 108 178 30 27 Siege Activations . | . . . . . . . . . . . . . . . . . . . . . . Martial Activations . | . . . . . . . . . . . . . . . . . . . . . . Shielding Activations . | . . . . . . . . . . . . . . . . . . . . . . Robots Disrupted . | . . . . . . . . . . . . . . . . . . . . . . Combat Hostiles . | . . . . . . . . . . . . . . . . . . . . . . Robots Corrupted . | . . . . . . . . . . . . . . . . . . . . . . Combat Hostiles . | . . . . . . . . . . . . . . . . . . . . . . Parts Fried . | . . . . . . . . . . . . . . . . . . . . . . Impact Corruptions . | . . . . . . . . . . . . . . . . . . . . . . Robots Melted . | . . . . . . . . . . . . . . . . . . . . . . Combat Hostiles . | . . . . . . . . . . . . . . . . . . . . . . Parts Melted 4 | . . 1 3 . . . . . . . . . . . . . . . . . . Heat Transferred 2643 | 275 475 850 1043 . . . . . . . . . . . . . . . . . . Parts Sabotaged . | . . . . . . . . . . . . . . . . . . . . . . Parts Stolen . | . . . . . . . . . . . . . . . . . . . . . . Parts Stripped . | . . . . . . . . . . . . . . . . . . . . . . Power Chain Reactions . | . . . . . . . . . . . . . . . . . . . . . . Alert | -11 -10 -10 -9 -9 -9 -8 -8 -8 -8 -8 -6 -6 -6 -6 -5 -5 -5 -5 -4 -3 -2 ------- Run | Yrd Mat Min Mat Min Exi Min Mat Sto Rec Scr Fac Low Low Dat Pro Fac DSF Gar Fac Res Res Maximum Alert Level 1 | . . . 1 . . . . . . . . . . . . . . . . . . Low Security (%) 96 | 100 100 100 76 100 . 100 100 100 100 . 100 . . . . 100 100 100 100 100 100 Level 1 3 | . . . 23 . . . . . . . . . . . . . . . . . . Level 2 . | . . . . . . . . . . . . . . . . . . . . . . Level 3 . | . . . . . . . . . . . . . . . . . . . . . . Level 4 . | . . . . . . . . . . . . . . . . . . . . . . Level 5 . | . . . . . . . . . . . . . . . . . . . . . . High Security . | . . . . . . . . . . . . . . . . . . . . . . Max Security . | . . . . . . . . . . . . . . . . . . . . . . Peak Influence 275 | 5 55 55 275 135 . . 10 12 . . 12 . . . . 4 12 30 130 68 15 Initial 75 | . . . 15 75 . . . . . . . . . . . . . 9 23 68 8 Average 25 | 1 10 8 120 96 . . . 2 . . . . . . . . 3 9 18 22 . Influence Increases 1506 | 30 128 303 598 90 . . 18 12 . . 15 . 12 . . 4 12 57 150 62 15 Destroy 0b10 Robot/C 780 | . 80 220 400 80 . . . . . . . . . . . . . . . . . Destroy 0b10 Robot/NC 90 | 30 5 15 40 . . . . . . . . . . . . . . . . . . Destroy Leader 180 | . 20 50 100 10 . . . . . . . . . . . . . . . . . Allied During Kill 31 | . . 18 13 . . . . . . . . . . . . . . . . . . Successful Hack 94 | . 23 . 13 . . . 17 12 . . 12 . . . . . . . . 17 . Destroy Structure 10 | . . . 2 . . . 1 . . . 3 . . . . 4 . . . . . Partial Spotted 30 | . . . 15 . . . . . . . . . . . . . . 15 . . . Lose Combat Pursuer 291 | . . . 15 . . . . . . . . . 12 . . . 12 42 150 45 15 Influence Decreases 1497 | 30 128 263 443 190 95 . 17 11 2 . 15 . . 12 . 4 . 24 65 177 21 Entered New Map 349 | . . . 25 120 95 . . 1 2 . . . . 12 . . . 3 22 62 7 Time Decay 1007 | 30 128 233 338 60 . . 17 10 . . 15 . . . . 4 . . 43 115 14 Lost Part 92 | . . 30 40 10 . . . . . . . . . . . . . 12 . . . Lost Ally 49 | . . . 40 . . . . . . . . . . . . . . 9 . . . Squads Dispatched 10 | . . . 2 . . . . . . . 2 . . . . . . . 2 1 3 Investigation 3 | . . . 2 . . . . . . . . . . . . . . . 1 . . Extermination 5 | . . . . . . . . . . . 2 . . . . . . . . 1 2 Reinforcement 2 | . . . . . . . . . . . . . . . . . . . 1 . 1 Assault . | . . . . . . . . . . . . . . . . . . . . . . Garrison . | . . . . . . . . . . . . . . . . . . . . . . Intercept . | . . . . . . . . . . . . . . . . . . . . . . Searches Triggered . | . . . . . . . . . . . . . . . . . . . . . . Construction Impeded . | . . . . . . . . . . . . . . . . . . . . . . Haulers Reinforced . | . . . . . . . . . . . . . . . . . . . . . . Active Scanning Responses . | . . . . . . . . . . . . . . . . . . . . . . Cargo Convoy Interrupts . | . . . . . . . . . . . . . . . . . . . . . . Stealth | -11 -10 -10 -9 -9 -9 -8 -8 -8 -8 -8 -6 -6 -6 -6 -5 -5 -5 -5 -4 -3 -2 --------- Run | Yrd Mat Min Mat Min Exi Min Mat Sto Rec Scr Fac Low Low Dat Pro Fac DSF Gar Fac Res Res Distress Signals 9 | . 2 . 3 . . . . . . . . . . . . . . . . 3 1 Communications Jammed 3 | . . . . . . . . . . . 3 . . . . . . . . . . Distress Signals 3 | . . . . . . . . . . . 3 . . . . . . . . . . Times Spotted 142 | . 11 12 25 4 . . 6 1 . . 1 6 2 . 7 2 2 17 15 14 17 Peak Tracking Total 20 | . 4 3 5 4 . . 2 1 . . 1 6 2 . 4 2 1 20 9 8 15 Tactical Retreats 13 | . . . 1 . . . . . . . . . 1 . . . 1 2 3 4 1 ECM-based Alert Blocks 4 | . . . . . . . . . . . . . . . . . . . . 4 . Traps | -11 -10 -10 -9 -9 -9 -8 -8 -8 -8 -8 -6 -6 -6 -6 -5 -5 -5 -5 -4 -3 -2 ------- Run | Yrd Mat Min Mat Min Exi Min Mat Sto Rec Scr Fac Low Low Dat Pro Fac DSF Gar Fac Res Res Traps Triggered 10 | . 1 . . . . . . . . . 1 . . . . . 1 2 . 5 . Indirectly . | . . . . . . . . . . . . . . . . . . . . . . Trap Hack Attempts . | . . . . . . . . . . . . . . . . . . . . . . Triggered . | . . . . . . . . . . . . . . . . . . . . . . Disarmed . | . . . . . . . . . . . . . . . . . . . . . . Reprogrammed . | . . . . . . . . . . . . . . . . . . . . . . Reused . | . . . . . . . . . . . . . . . . . . . . . . Traps Extracted . | . . . . . . . . . . . . . . . . . . . . . . Installed . | . . . . . . . . . . . . . . . . . . . . . . Triggered . | . . . . . . . . . . . . . . . . . . . . . . Machines | -11 -10 -10 -9 -9 -9 -8 -8 -8 -8 -8 -6 -6 -6 -6 -5 -5 -5 -5 -4 -3 -2 ---------- Run | Yrd Mat Min Mat Min Exi Min Mat Sto Rec Scr Fac Low Low Dat Pro Fac DSF Gar Fac Res Res Machines Disabled . | . . . . . . . . . . . . . . . . . . . . . . Max in Single Turn . | . . . . . . . . . . . . . . . . . . . . . . Machines Repaired . | . . . . . . . . . . . . . . . . . . . . . . Machines Dismantled . | . . . . . . . . . . . . . . . . . . . . . . Machines Sabotaged . | . . . . . . . . . . . . . . . . . . . . . . Overloaded Fab Kills . | . . . . . . . . . . . . . . . . . . . . . . Hacking | -11 -10 -10 -9 -9 -9 -8 -8 -8 -8 -8 -6 -6 -6 -6 -5 -5 -5 -5 -4 -3 -2 --------- Run | Yrd Mat Min Mat Min Exi Min Mat Sto Rec Scr Fac Low Low Dat Pro Fac DSF Gar Fac Res Res Machines Accessed 39 | . 3 . 6 . 1 . 5 3 1 1 8 1 . 4 . 1 . . 1 4 . Terminals 24 | . 3 . 5 . . . 5 3 1 . 4 . . . . 1 . . . 2 . Fabricators 2 | . . . . . . . . . . . 1 . . . . . . . 1 . . Repair Stations . | . . . . . . . . . . . . . . . . . . . . . . Recycling Units 1 | . . . . . . . . . . . 1 . . . . . . . . . . Scanalyzers 3 | . . . 1 . . . . . . . 1 . . . . . . . . 1 . Garrison Access 2 | . . . . . . . . . . . 1 . . . . . . . . 1 . Total Hacks 110 | . 13 . 21 . 1 . 11 3 1 4 16 1 . 27 . 1 . . 3 8 . Successful 68 | . 9 . 7 . 1 . 6 3 . 4 7 1 . 27 . 1 . . . 2 . Failed 42 | . 4 . 14 . . . 5 . 1 . 9 . . . . . . . 3 6 . Catastrophic 14 | . 2 . 5 . . . 1 . . . 3 . . . . . . . 2 1 . Database Lockouts . | . . . . . . . . . . . . . . . . . . . . . . Manual 42 | . 9 . 14 . 1 . 10 3 . . 5 . . . . . . . . . . Terminals 59 | . 13 . 18 . . . 11 3 1 . 7 . . . . 1 . . . 5 . Fabricators 4 | . . . . . . . . . . . 1 . . . . . . . 3 . . Repair Stations . | . . . . . . . . . . . . . . . . . . . . . . Recycling Units 1 | . . . . . . . . . . . 1 . . . . . . . . . . Scanalyzers 9 | . . . 3 . . . . . . . 4 . . . . . . . . 2 . Garrison Access 4 | . . . . . . . . . . . 3 . . . . . . . . 1 . Terminal Hacks 56 | . 9 . 5 . 1 . 3 2 . 4 2 1 . 27 . 1 . . . 1 . Record 15 | . . . . . . . . . . 4 . . . 11 . . . . . . . Part Schematic 9 | . . . . . . . 1 . . . . . . 8 . . . . . . . Robot Schematic 5 | . . . . . . . . . . . . . . 5 . . . . . . . Robot Analysis 7 | . 6 . 1 . . . . . . . . . . . . . . . . . . Prototype ID Bank 6 | . . . 2 . . . 1 . . . . . . 3 . . . . . . . Open Door 2 | . . . . . . . . 1 . . . 1 . . . . . . . . . Open DSF 2 | . . . . . . . . . . . . . . . . 1 . . . 1 . Branch Access Points 3 | . 1 . 1 . . . . 1 . . . . . . . . . . . . . Emergency Access Points 1 | . . . . . . . . . . . 1 . . . . . . . . . . Terminal Index 4 | . 1 . 1 . . . 1 . . . 1 . . . . . . . . . . Hauler Manifests 1 | . 1 . . . . . . . . . . . . . . . . . . . . Proto ID Catalog 1 | . . . . . 1 . . . . . . . . . . . . . . . . Fabricator Hacks 1 | . . . . . . . . . . . 1 . . . . . . . . . . Build 1 | . . . . . . . . . . . 1 . . . . . . . . . . Repair Station Hacks . | . . . . . . . . . . . . . . . . . . . . . . Recycling Unit Hacks . | . . . . . . . . . . . . . . . . . . . . . . Scanalyzer 6 | . . . 2 . . . . . . . 3 . . . . . . . . 1 . Retrieve Study 6 | . . . 2 . . . . . . . 3 . . . . . . . . 1 . Garrison Access Hacks . | . . . . . . . . . . . . . . . . . . . . . . Unauthorized Hacks 4 | . . . . . . . 3 1 . . . . . . . . . . . . . Terminals 4 | . . . . . . . 3 1 . . . . . . . . . . . . . Assimilate 4 | . . . . . . . 3 1 . . . . . . . . . . . . . Fabricators . | . . . . . . . . . . . . . . . . . . . . . . Repair Stations . | . . . . . . . . . . . . . . . . . . . . . . Recycling Units . | . . . . . . . . . . . . . . . . . . . . . . Scanalyzers . | . . . . . . . . . . . . . . . . . . . . . . Garrison Access . | . . . . . . . . . . . . . . . . . . . . . . Data Cores Recovered . | . . . . . . . . . . . . . . . . . . . . . . Used . | . . . . . . . . . . . . . . . . . . . . . . Hacking Detections 28 | . 3 . 5 . . . 5 3 1 . 6 . . . . . . . 1 4 . Full Trace Events 3 | . 1 . 1 . . . . . . . . . . . . . . . 1 . . Feedback Events . | . . . . . . . . . . . . . . . . . . . . . . Feedback Blocked . | . . . . . . . . . . . . . . . . . . . . . . Robot Schematics Acquired 5 | . . . . . . . . . . . . . . 5 . . . . . . . Robots Built . | . . . . . . . . . . . . . . . . . . . . . . Authchips . | . . . . . . . . . . . . . . . . . . . . . . Time . | . . . . . . . . . . . . . . . . . . . . . . Total Robot Build Rating . | . . . . . . . . . . . . . . . . . . . . . . Part Schematics Acquired 9 | . . . . . . . 1 . . . . . . 8 . . . . . . . Parts Built 2 | . . . . . . . . . . . 2 . . . . . . . . . . Authchips . | . . . . . . . . . . . . . . . . . . . . . . Time 58 | . . . . . . . . . . . 58 . . . . . . . . . . Total Part Build Rating 14 | . . . . . . . . . . . 14 . . . . . . . . . . Part Studies Acquired 6 | . . . 2 . . . . . . . 3 . . . . . . . . 1 . Parts Repaired . | . . . . . . . . . . . . . . . . . . . . . . Time . | . . . . . . . . . . . . . . . . . . . . . . Parts Recycled . | . . . . . . . . . . . . . . . . . . . . . . Recycled Matter . | . . . . . . . . . . . . . . . . . . . . . . Retrieved Matter . | . . . . . . . . . . . . . . . . . . . . . . Retrieved Components . | . . . . . . . . . . . . . . . . . . . . . . Parts Scanalyzed . | . . . . . . . . . . . . . . . . . . . . . . Part Schematics Acquired . | . . . . . . . . . . . . . . . . . . . . . . Parts Damaged . | . . . . . . . . . . . . . . . . . . . . . . Bothacking | -11 -10 -10 -9 -9 -9 -8 -8 -8 -8 -8 -6 -6 -6 -6 -5 -5 -5 -5 -4 -3 -2 ------------ Run | Yrd Mat Min Mat Min Exi Min Mat Sto Rec Scr Fac Low Low Dat Pro Fac DSF Gar Fac Res Res Used RIF Installer . | . . . . . . . . . . . . . . . . . . . . . . Robots Hacked . | . . . . . . . . . . . . . . . . . . . . . . Non-combat . | . . . . . . . . . . . . . . . . . . . . . . Combat . | . . . . . . . . . . . . . . . . . . . . . . Robot Hacks Applied . | . . . . . . . . . . . . . . . . . . . . . . Relay Couplers Released . | . . . . . . . . . . . . . . . . . . . . . . Fabnet Peak Effective % . | . . . . . . . . . . . . . . . . . . . . . . Robots Rewired . | . . . . . . . . . . . . . . . . . . . . . . Allies Hacked . | . . . . . . . . . . . . . . . . . . . . . . Hacks Repelled . | . . . . . . . . . . . . . . . . . . . . . . Allies | -11 -10 -10 -9 -9 -9 -8 -8 -8 -8 -8 -6 -6 -6 -6 -5 -5 -5 -5 -4 -3 -2 -------- Run | Yrd Mat Min Mat Min Exi Min Mat Sto Rec Scr Fac Low Low Dat Pro Fac DSF Gar Fac Res Res Total Allies 5 | . . 4 . . . . 1 . . . . . . . . . . . . . . Largest Group 4 | . . 4 3 . . . 1 . . . . . . . . . . . . . . Highest-Rated Group 71 | . . 71 40 . . . 10 . . . . . . . . . . . . . . Highest-Rated Ally 31 | . . 31 16 . . . 10 . . . . . . . . . . . . . . Total Orders 2 | . . . . . . . 1 . . . . . . . . . . 1 . . . FOLLOW 1 | . . . . . . . 1 . . . . . . . . . . . . . . EXPLORE 1 | . . . . . . . . . . . . . . . . . . 1 . . . Ally Attacks 30 | . . 6 24 . . . . . . . . . . . . . . . . . . Total Damage 365 | . . 92 273 . . . . . . . . . . . . . . . . . . Kills 8 | . . 2 6 . . . . . . . . . . . . . . . . . . Allies Corrupted . | . . . . . . . . . . . . . . . . . . . . . . Allies Melted . | . . . . . . . . . . . . . . . . . . . . . . Intel | -11 -10 -10 -9 -9 -9 -8 -8 -8 -8 -8 -6 -6 -6 -6 -5 -5 -5 -5 -4 -3 -2 ------- Run | Yrd Mat Min Mat Min Exi Min Mat Sto Rec Scr Fac Low Low Dat Pro Fac DSF Gar Fac Res Res Active Infowar (turns) 4734 | 19 558 774 900 . . . 862 40 16 232 435 147 78 31 105 104 43 118 . 272 . Sensors 1164 | . . 264 900 . . . . . . . . . . . . . . . . . . Structural 2211 | . . . . . . . 862 40 16 232 435 147 78 31 105 104 43 118 . . . Traps 655 | . . . . . . . . . . . 35 147 78 31 105 104 43 112 . . . Seismic 1087 | 19 558 510 . . . . . . . . . . . . . . . . . . . Machine Analysis 1423 | . . . . . . . 74 40 16 232 435 147 78 31 105 104 43 118 . . . Jamming 718 | . . . . . . . . . . . 233 147 78 31 105 104 20 . . . . ECM 272 | . . . . . . . . . . . . . . . . . . . . 272 . Robot Analysis Total 7 | . 6 . 1 . . . . . . . . . . . . . . . . . . Derelict Logs Recovered 5 | . . 1 . 1 . . . . . . . 1 . . 2 . . . . . . Drone Launches 2 | . . . . . . . . . . . . . . . . . . 2 . . . Drone Recoveries . | . . . . . . . . . . . . . . . . . . . . . . Exploration | -11 -10 -10 -9 -9 -9 -8 -8 -8 -8 -8 -6 -6 -6 -6 -5 -5 -5 -5 -4 -3 -2 ------------- Run | Yrd Mat Min Mat Min Exi Min Mat Sto Rec Scr Fac Low Low Dat Pro Fac DSF Gar Fac Res Res Turns Passed 8555 | 256 558 1958 1194 136 253 486 867 40 16 232 435 147 78 31 105 104 43 163 173 405 875 Spaces Moved 7578 | 124 238 350 707 101 210 403 473 115 61 864 983 473 251 99 337 252 60 121 219 967 170 Core 426 | 4 . 20 . . . . . . . . . . . . . . 8 82 219 10 83 Treads 399 | 120 238 41 . . . . . . . . . . . . . . . . . . . Legs 1672 | . . 248 707 101 210 403 3 . . . . . . . . . . . . . . Wheels . | . . . . . . . . . . . . . . . . . . . . . . Hover . | . . . . . . . . . . . . . . . . . . . . . . Flight 5081 | . . 41 . . . . 470 115 61 864 983 473 251 99 337 252 52 39 . 957 87 Fastest Speed 26 | 50 160 320 120 120 120 120 26 26 26 26 26 31 31 31 31 31 31 31 50 29 32 Average Speed 78 | 156 185 516 135 126 120 120 28 26 26 26 30 31 31 31 31 31 60 47 50 31 40 Slowest Speed 1640 | 160 320 1640 330 190 120 120 120 26 26 26 31 31 31 31 31 31 250 250 50 111 50 Overloaded Moves . | . . . . . . . . . . . . . . . . . . . . . . Propulsion Burnouts . | . . . . . . . . . . . . . . . . . . . . . . Robots Hopped 26 | . . . . . . . . 1 . . 8 . 1 . 2 . . 6 . 8 . Potential Cave-ins . | . . . . . . . . . . . . . . . . . . . . . . Cave-ins Triggered . | . . . . . . . . . . . . . . . . . . . . . . Exploration Rate (%) 38 | 8 39 75 45 32 61 74 32 23 11 56 21 58 42 75 51 8 68 25 9 21 5 Regions Visited 21 Branch Regions 11 Pre-discovered Areas 1 | . . . . . . . . . . . . . . 1 . . . . . . . Known Exits Taken 6 | . 1 . 1 . . . 1 1 . . . . . . 1 1 . . . . . Unknown Exits Taken 13 | 1 . 1 . 1 1 1 . . 1 1 1 1 1 1 . . . . 1 1 . Scrap Searched 12 | . . 2 . . . 1 . . . 6 . 3 . . . . . . . . . Spaces Dug 6 | . . . . . . . 1 . . . 3 . . . . 2 . . . . . Terrain Destroyed 6 | . . . . . . . 1 . . . 3 . . . . 2 . . . . . Melee 6 | . . . . . . . 1 . . . 3 . . . . 2 . . . . . Projectile . | . . . . . . . . . . . . . . . . . . . . . . AOE . | . . . . . . . . . . . . . . . . . . . . . . Terrain Rammed . | . . . . . . . . . . . . . . . . . . . . . . Walls Destroyed . | . . . . . . . . . . . . . . . . . . . . . . Machines Disabled . | . . . . . . . . . . . . . . . . . . . . . . Actions | -11 -10 -10 -9 -9 -9 -8 -8 -8 -8 -8 -6 -6 -6 -6 -5 -5 -5 -5 -4 -3 -2 --------- Run | Yrd Mat Min Mat Min Exi Min Mat Sto Rec Scr Fac Low Low Dat Pro Fac DSF Gar Fac Res Res Total 9817 | 151 302 407 850 105 210 407 1205 123 60 870 1100 472 249 98 334 274 68 220 281 1056 975 Wait 1868 | . 26 . 26 1 . . 699 10 . 3 97 . . . . 19 7 89 60 40 791 Move 7512 | 123 237 349 706 100 209 402 472 112 60 863 966 472 248 98 332 251 59 113 218 952 170 Hop 19 | . . . . . . . . 1 . . 8 . 1 . 2 . . 1 . 6 . Pick Up 41 | 3 7 4 15 1 . 2 1 . . . 4 . . . . . . . . 4 . Fast Attach 38 | 6 . 7 4 . 1 . 2 . . 2 4 . . . . . . . . 11 1 Attach 15 | 1 . . 2 1 . . 3 . . . 2 . . . . . 2 1 . 3 . Detach 5 | . . . . . . . 1 . . . 3 . . . . . . . . 1 . Swap 39 | . 1 1 15 . . . 11 . . . 7 . . . . 1 . . . 3 . Drop 48 | . . . 17 . . 3 15 . . 2 6 . . . . 1 . . . 4 . Fire 148 | 18 29 43 56 2 . . . . . . . . . . . . . . . . . Melee 6 | . . . . . . . 1 . . . 3 . . . . 2 . . . . . Ram 19 | . . 1 . . . . . . . . . . . . . . . 2 3 . 13 Kick 11 | . . 2 9 . . . . . . . . . . . . . . . . . . Crush 2 | . 2 . . . . . . . . . . . . . . . . . . . . Escape Stasis 46 | . . . . . . . . . . . . . . . . . . 14 . 32 . Rewire . | . . . . . . . . . . . . . . . . . . . . . . Trap . | . . . . . . . . . . . . . . . . . . . . . . Miscellaneous . | . . . . . . . . . . . . . . . . . . . . . . Route ------- -11/Scrapyard -10/Materials (discovered 2 exits: *Min x2) -10/Mines (discovered 2 exits: *Mat / [*Sub]) -9/Materials -9/Mines (discovered 2 exits: *Exi / [*Zio]) -9/Exiles -8/Mines -8/Materials (discovered 2 exits: [*Fac] / *Sto) -8/Storage -8/Recycling -8/Scraptown -6/Factory -6/Lower Caves -6/Lower Caves -6/Data Miner -5/Proximity Caves -5/Factory -5/DSF -5/Garrison -4/Factory -3/Research -2/Research (discovered 1 exit: [*Acc]) History --------- Turn | Location | Event 7 | -11/Scrapyard | Discovered new exit (range 16) 257 | -11/Scrapyard | Entered Materials 316 | -10/Materials | Build established: Mutant 515 | -10/Materials | Identified exit to Mines 815 | -10/Materials | Entered Mines 984 | -10/Mines | Core integrity fell below 50% 1476 | -10/Mines | Assisted by bots powering up and referring to "LRC-V3" 1714 | -10/Mines | Core integrity fell below 20% 1757 | -10/Mines | Lost 4 parts (1p1n1u1w) 1840 | -10/Mines | Received a Mining Laser from a helpful Derelict 2023 | -10/Mines | Discovered new exit (range 6) 2453 | -10/Mines | Learned Materials trap positions 2501 | -10/Mines | Found a damaged Exp. Sensor Array with a note attached 2509 | -10/Mines | Found Prototype Device 2509 | -10/Mines | Identified Exp. Sensor Array 2654 | -10/Mines | Discovered new exit (range 15) 2773 | -10/Mines | Entered Materials 2773 | -9/Materials | Accompanied by 3 allies 2773 | -9/Materials | Evolved 2 slots: Propulsion x2 2774 | -9/Materials | Loaded intel: 17 trap records 3041 | -9/Materials | Identified exit to Mines 3047 | -9/Materials | Build established: Scavenger-Mutant 3967 | -9/Materials | Entered Mines 3973 | -9/Mines | A Derelict revealed a hidden shortcut to a safe place 4098 | -9/Mines | Deemed a non-threat by the Exiles lab entrance 4098 | -9/Mines | Discovered new exit (range 5) 4103 | -9/Mines | Entered Exiles 4132 | -9/Exiles | Met 8R-AWN 4150 | -9/Exiles | Met EX-HEX 4185 | -9/Exiles | Met EX-BIN 4202 | -9/Exiles | Aligned with FarCom system 4203 | -9/Exiles | Given EX-Vault access code 4231 | -9/Exiles | Opened EX-Vault 4243 | -9/Exiles | Found 0b10 Alert Chip 4269 | -9/Exiles | Warned to stay clear of 0b10 Research branches 4281 | -9/Exiles | Exiles lab attacked by MAIN.C 4344 | -9/Exiles | Discovered new exit (range 12) 4356 | -9/Exiles | Left Exiles lab with 0b10 Alert Chip 4356 | -9/Exiles | Entered Mines 4546 | -8/Mines | Found a Scrap Suit stashed away for nefarious purposes 4550 | -8/Mines | Found Scrap Suit 4829 | -8/Mines | Discovered new exit (range 11) 4842 | -8/Mines | Entered Materials 4842 | -8/Materials | Evolved 2 slots: Power x1, Utility x1 4843 | -8/Materials | Identified exit to Storage 5151 | -8/Materials | Build established: Scout 5709 | -8/Materials | Discovered new exit (range 15) 5709 | -8/Materials | Entered Storage 5731 | -8/Storage | Identified exit to Recycling 5748 | -8/Storage | Used back door to open Recycling access 5749 | -8/Storage | Entered Recycling 5750 | -8/Recycling | Met a Zionite searching for Scraptown 5758 | -8/Recycling | Scanned before Scraplab entrance 5761 | -8/Recycling | Discovered new exit (range 11) 5761 | -8/Recycling | Entered Scraplab 5765 | -8/Recycling | Entered Scraptown 5841 | -8/Scraptown | Visited Bundlers 5860 | -8/Scraptown | Visited Symbiants 5868 | -8/Scraptown | Visited Awakened 5903 | -8/Scraptown | Turned away by UFD registrar 5915 | -8/Scraptown | Visited Cyclists 5923 | -8/Scraptown | Visited Assassins FH 5946 | -8/Scraptown | Discovered new exit (range 13) 5997 | -8/Scraptown | Entered Factory 5997 | -6/Factory | Evolved 4 slots: Utility x4 6198 | -6/Factory | Fabricated Adv. Transmission Jammer (x2) 6431 | -6/Factory | Discovered new exit (range 5) 6432 | -6/Factory | Entered Lower Caves 6536 | -6/Lower Caves | Learned Factory emergency access door positions 6547 | -6/Lower Caves | Ambushed by wild Derelicts 6576 | -6/Lower Caves | Discovered new exit (range 9) 6579 | -6/Lower Caves | Entered another Lower Caves area 6643 | -6/Lower Caves | Spotted B-75 Beast 6654 | -6/Lower Caves | Discovered new exit (range 7) 6657 | -6/Lower Caves | Entered Data Miner 6657 | -6/Data Miner | Discovered new exit (range 6) 6663 | -6/Data Miner | Met Data Miner 6674 | -6/Data Miner | Learned location of Section 7 (-3) 6674 | -6/Data Miner | Acquired the access code to Warlord's prototype stash 6680 | -6/Data Miner | Received God Mode back door access code from Data Miner 6688 | -6/Data Miner | Entered Proximity Caves 6722 | -5/Proximity Caves | Build established: Infiltrator-Sprinter 6767 | -5/Proximity Caves | Identified exit to Factory 6793 | -5/Proximity Caves | Entered Factory 6793 | -5/Factory | Evolved 2 slots: Utility x2 6897 | -5/Factory | Identified exit to DSF 6897 | -5/Factory | Entered DSF 6911 | -5/DSF | Discovered new exit (range 15) 6913 | -5/DSF | Additional patrols routed to DSF 6940 | -5/DSF | Entered Garrison 6941 | -5/Garrison | Lost 4 parts (2p2n) 7040 | -5/Garrison | Triggered checkpoint 7058 | -5/Garrison | Released all parts (9) 7080 | -5/Garrison | Core integrity fell below 50% 7084 | -5/Garrison | Triggered checkpoint 7088 | -5/Garrison | Lost 4 parts (3n1u) 7098 | -5/Garrison | Core integrity fell below 20% 7099 | -5/Garrison | Discovered new exit (range 10) 7103 | -5/Garrison | Entered Factory 7103 | -4/Factory | Evolved 2 slots: Utility x2 7238 | -4/Factory | Core integrity fell below 50% 7269 | -4/Factory | Discovered new exit (range 12) 7271 | -4/Factory | Core integrity fell below 20% 7276 | -4/Factory | Entered Research 7276 | -3/Research | Evolved 2 slots: Power x1, Utility x1 7392 | -3/Research | Found Prototype Device 7392 | -3/Research | Identified Exp. Shield Generator 7632 | -3/Research | Build established: Sprinter 7673 | -3/Research | Discovered new exit (range 8) 7681 | -3/Research | Entered another Research area 7681 | -2/Research | Evolved 2 slots: Utility x2 7707 | -2/Research | Lost 4 parts (2n2u) 8502 | -2/Research | Released all parts (5) 8529 | -2/Research | Core integrity fell below 50% 8546 | -2/Research | Core integrity fell below 20% 8549 | -2/Research | Discovered new exit (range 15) 8556 | -2/Research | Destroyed by S-43 Plague with Heavy Machine Gun Last Messages --------------- 08524_ Slug penetrates Wall. 08524_ Penetrated by Slug. 08524_ Slammed into H-88 Terminator. 08524_ Penetrated by Slug. 08525_ Slammed into H-88 Terminator. 08527_ W-44 Eye sends out distress signal. 08527_ Penetrated by Slug. 08527_ Slammed into H-88 Terminator. 08528_ Penetrated by Slug. 08528_ Slammed into H-88 Terminator. 08528_ Destabilizing: System corrupted (+2). 08529_ Slammed into H-88 Terminator. 08531_ Penetrated by Slug. 08531_ Slammed into W-44 Eye. 08534_ Slammed into P-80 Master. 08535_ Slammed into W-44 Eye. 08539_ K-01 Serf cleans the Wave Intensifier. 08549_ EXIT=FOUND 08552_ Penetrated by Slug. 08554_ System corrupted: Energy discharge (-26). Map ----- +----------------------------------------------------+ | | | | | | | | | | | | | | | | | | | | | ?????????????????????????????????????????????????? | | ?????????????????????????????????????????????????? | | ?????????????????????????????????????????????????? | | ?????????????????????????????????????????????????? | | ?????????????????????????????????????????????????? | | ???????????????????????#+#???????????????????????? | | ??????????????????????? #??????????????????????? | | ??????????????????????? ??????????????????????? | | ???????????????????????# #??????????????????????? | | ???????????????????????# #??????????????????????? | | ??????????????????????## ##?????????????????????? | | ??????????????????????# ! #?????????????????????? | | ??????????????????????# Y #?????????????????????? | | ??????????????????????# < +?????????????????????? | | ??????????????????????# #?????????????????????? | | ???????????????????????# @#??########????????????? | | ???????????????????????# # ! #????????????? | | ???????????????????????# + #????????????? | | ???????????????????????# # #????????????? | | ??????????############## #?? #????????????? | | ?????????? #????######????????????? | | ?????????????# #???######?????????????? | | ?????????????## #??? #?????????????? | | ??????????????# #?? #?????????????? | | ???????????#### #?? #?????????????? | | ???????? s#? #?????????????? | | ???????? s#? """#?????????????? | | ??????????#### ########ss# """#?????????????? | | ?????????????# ?# ???# p# """#?????????????? | | ?????????????#??# ??# p/ #?????????????? | | ????????????????# ??#sp# = #?????????????? | | ????????????????# ## ##########?????????????? | | ????????????????# # p###########???????????? | | ????????????????# + ! #???????????? | | ????????????????# # #???????????? | | ????????????????# # ########/######???????? | | ????????????????# ?######?# #???????? | | ????????????????# ????????# #???????? | | ????????????????# ?????????# #???????? | | ????????????????# ?????????# #???????? | +----------------------------------------------------+ Best States ------------- Heat Dissipation 49 Energy Generation 51 Energy Capacity 440 Matter Stores 300 Matter Capacity 300 Sight Range 16 Robot Scan Range 20 Terrain Scan Density 210 ECM Strength 1 Jamming Range 16 Evasion (%) 64 Recoil Reduction 2 Defensive Hacking 12 Item Schematics ----------------- Hacking Suite | -8/Materials | Hacked Combat Drone Bay | -6/Data Miner | Free Lgt. Regenerative Plating | -6/Data Miner | Free Cld. Gravmag System | -6/Data Miner | Free Cld. Plasma Rifle | -6/Data Miner | Free Imp. Energy Well | -6/Data Miner | Free Adv. Medium Treads | -6/Data Miner | Free Adv. Cryofiber Web | -6/Data Miner | Free Dispersion Rifle | -6/Data Miner | Free Robot Schematics ------------------ Y-64 Sentinel | -6/Data Miner | Free R-10 Processor | -6/Data Miner | Free A-15 Conveyor | -6/Data Miner | Free M-22 Extractor | -6/Data Miner | Free G-67 Veteran | -6/Data Miner | Free Fabricated ------------ Adv. Transmission Jammer | x2 | -6/Factory | Preloaded Repaired ---------- Nothing Studied --------- Imp. Ion Engine | -9/Materials | Hacked Flight Unit | -9/Materials | Hacked Xenon Bombardment Thruster | -6/Factory | Hacked Lgt. Deuterium Engine | -6/Factory | Hacked Mic. Nuclear Core | -6/Factory | Hacked Mic. Antimatter Reactor | -3/Research | Hacked Alien Tech Used ----------------- None Achievements -------------- Explorer No Signal Challenges ------------ None Game ------ Seed GreatMetafiberEdition Manual? 0 Play Time 01:14:44 Cumulative 53.0 hours Start 2026.02.05 @ 18:15:49 End 2026.02.05 @ 19:41:54 Sessions 1 Manual Loads 0 Difficulty Rogue Special Mode None Game No. 101 Rogue 101 Adventurer 0 Explorer 0 Win Type - Total 0 Types 0/0/0/0/0/0/0/0/0/0 Lore% 30 Gallery% 29 Achievement% 26 Wizard Run 0 Options --------- Layout 0 ASCII 0 Keyboard 1 Movement Arrows Keybinds 0 Fullscreen 1 Font 18/Smallcaps Map View 76x50 Zoom Use 45% Tactical HUD 1 Map Filters NONE Filters NONE Steam 1 RUN: 7fd78fbc-bc4e-4d2e-848b-fa7bc473f60d